bitfinex-derivatives/quotes_SOLF0:USTF0_20250105
["timestamp","ask_amount","ask_price","bid_price","bid_amount"]
[1736098316555,2.3474,213.05,213.01,2.3478]
[1736098317366,2.3474,213.05,213.0,9.8344913]
[1736098317858,2.6,213.06,213.0,9.8344913]
[1736098318159,2.3475,213.04,213.0,16.3747945]
[1736098319954,2.6,213.06,213.01,7.18994057]
[1736098320757,2.6,213.06,213.01,2.3478]
[1736098321459,4.9473,213.06,213.01,2.3478]
[1736098321961,4.9473,213.06,213.02,4.84208746]
[1736098323066,4.9473,213.06,213.01,28.50901281]
[1736098324464,4.9473,213.06,213.02,4.8411005]
[1736098325464,4.9473,213.06,213.01,28.50901281]
[1736098326865,4.9473,213.06,213.02,4.84061181]
[1736098327164,2.6,213.06,213.02,4.84061181]
[1736098327364,2.3474,213.05,213.02,4.84061181]
[1736098327668,2.3474,213.05,213.01,28.50901281]
[1736098329566,2.3474,213.05,213.02,4.8411461]
[1736098330268,2.6,213.06,213.02,4.8411461]
[1736098330465,2.3473,213.07,213.02,7.4865913]
[1736098330663,61.69154772,213.09,213.04,7.4865913]
[1736098330864,59.09154772,213.09,213.06,2.3473]
[1736098331068,59.09154772,213.09,213.06,7.4865913]
[1736098332469,59.09154772,213.09,213.07,2.3471]
[1736098332862,4.9467,213.12,213.07,2.3471]
[1736098333269,2.6,213.12,213.07,2.3471]
[1736098333466,2.6,213.12,213.06,7.4865913]
[1736098333467,2.3467,213.11,213.04,26.16121281]
[1736098333770,2.3467,213.11,213.06,9.8338913]
[1736098337367,2.347,213.09,213.05,2.3474]
[1736098339169,2.6,213.12,213.06,7.4865913]
[1736098339375,2.347,213.1,213.06,7.4865913]
[1736098343275,2.347,213.09,213.06,7.4865913]
[1736098353383,2.347,213.09,213.05,16.3742945]
[1736098356395,2.347,213.09,213.05,9.8339913]
[1736098356697,2.3469,213.1,213.06,2.3473]
[1736098356995,2.6,213.13,213.07,7.4865913]
[1736098357191,4.9464,213.15,213.1,2.3468]
[1736098357395,2.3464,213.15,213.1,2.3468]
[1736098357596,4.9464,213.15,213.1,2.3468]
[1736098357991,2.6,213.15,213.1,2.3468]
[1736098358191,2.3464,213.14,213.09,9.8334913]
[1736098362900,2.3469,213.1,213.07,6.5403032]
[1736098363103,7.4865913,213.13,213.07,6.5403032]
[1736098363705,7.4865913,213.13,213.05,8.9965913]
[1736098364306,2.3471,213.09,213.05,8.9965913]
[1736098364496,2.6,213.1,213.05,7.4865913]
[1736098365196,2.6,213.1,213.04,26.16121281]
[1736098365497,7.4865913,213.07,213.04,6.5403032]
[1736098365696,7.4865913,213.07,213.01,7.4865913]
[1736098366399,2.3474,213.05,213.01,7.4865913]
[1736098366800,2.3474,213.05,213.02,4.84462607]
[1736098367806,2.3474,213.05,213.01,14.03280715]
[1736098369303,2.3474,213.05,213.01,7.4865913]
[1736098370206,7.4865913,213.09,213.01,7.4865913]
[1736098370402,2.3473,213.07,213.01,9.8343913]
[1736098371806,2.3471,213.08,213.03,9.8341913]
[1736098372001,2.6,213.1,213.0,26.18486341]
[1736098372002,2.6,213.1,213.05,7.4865913]
[1736098373407,2.347,213.09,213.05,7.4865913]
[1736098376506,2.3469,213.1,213.05,9.8338913]
[1736098376713,4.9469,213.1,213.07,7.4865913]
[1736098377514,4.9469,213.1,213.05,9.8338913]
[1736098381516,2.3473,213.07,213.04,6.54621585]
[1736098381714,2.6,213.1,213.04,14.03280715]
[1736098382413,2.6,213.1,213.04,9.8340913]
[1736098383518,2.347,213.09,213.04,7.4865913]
[1736098383825,2.6,213.1,213.05,2.3474]
[1736098385513,4.9469,213.1,213.05,2.3474]
[1736098390231,4.9469,213.1,213.06,7.4865913]
[1736098390533,4.9469,213.1,213.06,9.8338913]
[1736098391829,2.3469,213.1,213.06,9.8338913]
[1736098392630,2.6,213.12,213.06,9.8338913]
[1736098392835,2.6,213.14,213.1,7.4865913]
[1736098393225,2.6,213.16,213.1,9.8333913]
[1736098393930,2.6,213.16,213.12,7.4865913]
[1736098394127,4.9463,213.16,213.12,7.4865913]
[1736098398435,2.3463,213.16,213.12,7.4865913]
[1736098399832,2.6,213.17,213.12,7.4865913]
[1736098400037,2.3463,213.15,213.12,7.4865913]
[1736098400840,7.4865913,213.16,213.09,27.61426341]
[1736098401044,7.4865913,213.14,213.09,6.54621585]
[1736098401739,2.3468,213.11,213.08,5.99585726]
[1736098403546,2.3468,213.11,213.08,13.48244856]
[1736098410949,2.347,213.09,213.08,5.99585726]
[1736098414151,2.3469,213.1,213.08,5.99585726]
[1736098417551,2.3468,213.11,213.08,5.99585726]
[1736098417951,2.6,213.12,213.08,5.99585726]
[1736098418152,4.9466,213.12,213.08,5.99585726]
[1736098418947,2.3466,213.12,213.08,5.99585726]
[1736098419148,2.3466,213.12,213.09,7.4865913]
[1736098430659,2.6,213.14,213.09,7.4865913]
[1736098430959,7.4865913,213.2,213.13,7.4865913]
[1736098431160,2.6,213.19,213.13,7.4865913]
[1736098431356,2.3461,213.17,213.15,7.4865913]
[1736098431553,2.9478,213.22,213.15,7.4865913]
[1736098431764,2.6,213.21,213.17,7.4865913]
[1736098432966,2.3459,213.19,213.17,7.4865913]
[1736098433165,2.6,213.21,213.17,7.4865913]
[1736098433558,99.80415581,213.23,213.17,7.4865913]
[1736098433762,2.6,213.22,213.17,7.4865913]
[1736098434567,2.3458,213.2,213.17,7.4865913]
[1736098436964,92.31756451,213.23,213.19,7.4865913]
[1736098437161,92.31756451,213.23,213.21,7.4865913]
[1736098438360,2.6,213.27,213.21,7.4865913]
[1736098438562,2.6,213.28,213.25,7.4865913]
[1736098438959,2.6,213.29,213.25,7.4865913]
[1736098439165,2.6,213.29,213.27,7.4865913]
[1736098439665,2.3447,213.3,213.27,7.4865913]
[1736098439965,4.9447,213.3,213.27,7.4865913]
[1736098440161,2.344,213.37,213.27,2.345]
[1736098440364,2.6,213.37,213.31,7.4865913]
[1736098441262,2.6,213.37,213.25,6.13792103]
[1736098441263,2.6,213.36,213.33,7.4865913]
[1736098441664,2.6,213.36,213.3,7.4865913]
[1736098442466,2.3441,213.35,213.3,7.4865913]
[1736098445567,2.3441,213.35,213.28,2.3448]
[1736098445967,2.3441,213.35,213.3,7.4865913]
[1736098446158,2.344,213.36,213.32,7.4865913]
[1736098446366,7.021,213.7,213.32,7.4865913]
[1736098446569,7.4865913,213.4,213.32,7.4865913]
[1736098447371,2.6,213.39,213.32,7.4865913]
[1736098448168,2.6,213.39,213.34,7.4865913]
[1736098448169,2.3439,213.37,213.34,7.4865913]
[1736098448367,2.6,213.39,213.34,7.4865913]
[1736098449469,2.3438,213.38,213.34,7.4865913]
[1736098450072,2.6,213.39,213.34,7.4865913]
[1736098451076,4.9437,213.39,213.34,7.4865913]
[1736098454576,2.3438,213.38,213.34,7.4865913]
[1736098455983,2.6,213.39,213.34,7.4865913]
[1736098457380,2.58,213.4,213.36,7.4865913]
[1736098458789,4.9236,213.4,213.34,7.4865913]
[1736098460178,2.3437,213.39,213.34,7.4865913]
[1736098462986,2.3438,213.38,213.34,7.4865913]
[1736098463581,2.58,213.4,213.29,2.7644]
[1736098463582,2.3442,213.35,213.29,5.1092]
[1736098463783,4.9242,213.35,213.3,7.4865913]
[1736098465484,4.9242,213.35,213.29,5.1092]
[1736098465687,4.9242,213.35,213.31,7.4865913]
[1736098471090,2.58,213.35,213.33,7.4865913]
[1736098471294,2.58,213.35,213.29,2.7644]
[1736098471490,2.58,213.35,213.33,7.4865913]
[1736098473296,2.58,213.35,213.31,7.4865913]
[1736098473493,4.9241,213.35,213.31,7.4865913]
[1736098473998,4.9241,213.35,213.32,4.80820284]
[1736098475291,4.9241,213.35,213.32,6.45875307]
[1736098475995,4.9241,213.35,213.31,13.94534437]
[1736098477101,2.3441,213.35,213.31,13.94534437]
[1736098477803,2.3441,213.35,213.32,4.81280023]
[1736098478602,2.3441,213.35,213.31,33.3216036]
[1736098480404,2.3441,213.35,213.32,4.81326068]
[1736098480803,10.1865913,213.36,213.32,4.81326068]
[1736098481006,7.4865913,213.34,213.32,4.81326068]
[1736098481201,7.4865913,213.34,213.31,6.45875307]
[1736098481506,9.8309913,213.32,213.31,6.45875307]
[1736098482309,9.8309913,213.32,213.3,19.37625923]
[1736098482310,2.3448,213.29,213.25,39.45952463]
[1736098482509,5.0448,213.29,213.25,39.45952463]
[1736098483310,5.0448,213.29,213.25,13.62451233]
[1736098485208,2.7,213.29,213.27,7.4865913]
[1736098485513,7.4865913,213.28,213.22,6.45875307]
[1736098485710,2.3451,213.26,213.22,6.45875307]
[1736098485914,2.7,213.29,213.23,7.4865913]
[1736098486611,2.345,213.27,213.23,7.4865913]
[1736098487409,2.7,213.29,213.23,7.4865913]
[1736098488414,2.7,213.29,213.25,7.4865913]
[1736098489514,5.0448,213.29,213.25,7.4865913]
[1736098490214,2.7,213.29,213.25,9.8317913]
[1736098494217,2.3447,213.3,213.25,9.8317913]
[1736098495911,2.3447,213.3,213.27,7.4865913]
[1736098496117,2.7,213.34,213.29,7.4865913]
[1736098496314,2.7,213.34,213.31,7.4865913]
[1736098498311,2.3441,213.35,213.31,7.4865913]
[1736098498515,5.0441,213.35,213.31,7.4865913]
[1736098501315,2.3442,213.34,213.29,9.8312913]
[1736098503821,2.3442,213.34,213.31,7.4865913]
[1736098505320,5.0441,213.35,213.31,7.4865913]
[1736098506219,2.7,213.35,213.31,9.8310913]
[1736098506419,2.7,213.37,213.31,7.4865913]
[1736098507421,5.0439,213.37,213.32,2.3444]
[1736098508120,5.0439,213.37,213.31,7.4865913]
[1736098508321,5.0439,213.37,213.31,9.8310913]
[1736098508522,2.344,213.36,213.31,9.8310913]
[1736098509416,2.3443,213.33,213.27,8.80365307]
[1736098509713,1.5298,213.45,213.27,8.80365307]
[1736098509714,10.1865913,213.32,213.27,6.45875307]
[1736098509913,2.7,213.31,213.27,6.45875307]
[1736098510521,2.3449,213.29,213.27,6.45875307]
[1736098510718,2.3449,213.29,213.24,16.26881011]
[1736098511120,2.345,213.27,213.24,6.43691881]
[1736098511316,7.4865913,213.3,213.24,6.43691881]
[1736098511923,2.3452,213.26,213.24,6.43691881]
[1736098512626,2.7,213.26,213.21,25.8350123]
[1736098512923,2.7,213.26,213.2,7.4865913]
[1736098513624,10.1865913,213.26,213.2,7.4865913]
[1736098513826,7.4865913,213.24,213.18,4.3516]
[1736098514015,7.4865913,213.24,213.18,2.8291]
[1736098514220,9.8319913,213.24,213.18,2.8291]
[1736098514423,10.1865913,213.26,213.19,7.4865913]
[1736098515527,2.3452,213.25,213.19,7.4865913]
[1736098516324,2.3453,213.24,213.19,7.4865913]
[1736098519924,2.3453,213.24,213.19,9.8324913]
[1736098528533,2.3452,213.25,213.2,2.3457]
[1736098533833,12.5316913,213.26,213.2,2.3457]
[1736098539740,2.68,213.25,213.23,9.8319913]
[1736098539936,2.9782,213.33,213.23,7.4865913]
[1736098540136,5.0245,213.32,213.26,2.345]
[1736098541846,2.3445,213.32,213.26,2.345]
[1736098542041,5.0245,213.31,213.26,2.345]
[1736098543946,2.3445,213.31,213.26,2.345]
[1736098544252,2.68,213.3,213.26,2.345]
[1736098545648,2.68,213.3,213.25,9.8317913]
[1736098546044,7.4865913,213.27,213.21,6.45875307]
[1736098546645,2.3451,213.26,213.21,6.45875307]
[1736098546947,2.68,213.25,213.19,7.4865913]
[1736098547447,2.68,213.25,213.21,2.3455]
[1736098552145,7.4865913,213.22,213.17,25.8350123]
[1736098552341,7.4865913,213.18,213.17,25.8350123]
[1736098552552,10.1665913,213.18,213.17,25.8350123]
[1736098553752,10.1665913,213.18,213.14,6.45875307]
[1736098554653,10.1665913,213.18,213.12,28.7723123]
[1736098555449,12.5125913,213.18,213.12,11.74265307]
[1736098556451,12.5125913,213.18,213.12,5.2839]
[1736098556651,5.026,213.18,213.12,12.7704913]
[1736098557252,2.3461,213.17,213.12,12.7704913]
[1736098559056,2.68,213.18,213.12,12.7704913]
[1736098559251,2.3462,213.16,213.12,12.7704913]
[1736098559954,2.3462,213.16,213.12,10.4238913]
[1736098560259,7.4865913,213.15,213.1,6.45875307]
[1736098560645,2.3466,213.12,213.1,6.45875307]
[1736098561255,2.3466,213.12,213.08,13.94534437]
[1736098561456,2.3468,213.11,213.08,6.45875307]
[1736098562358,2.3468,213.11,213.06,19.57390862]
[1736098562556,2.3468,213.11,213.07,2.3471]
[1736098562757,2.3468,213.11,213.08,7.4865913]
[1736098563256,2.68,213.13,213.08,7.4865913]
[1736098563459,5.0266,213.13,213.1,7.4865913]
[1736098565359,5.0266,213.13,213.09,2.347]
[1736098566358,5.0266,213.13,213.07,9.8336913]
[1736098566757,5.0266,213.13,213.07,7.4865913]
[1736098567862,5.0266,213.13,213.08,2.347]
[1736098568261,10.1665913,213.13,213.08,2.347]
[1736098568458,10.1665913,213.13,213.03,141.91687134]
[1736098568459,9.8333913,213.11,213.03,141.91687134]
[1736098568667,9.8333913,213.11,213.04,7.4865913]
[1736098568862,9.8333913,213.11,213.06,2.3472]
[1736098569966,9.8335913,213.09,213.04,2.3474]
[1736098570166,2.68,213.08,213.04,2.3474]
[1736098570964,2.3472,213.07,213.03,118.42945904]
[1736098571160,2.68,213.08,213.04,7.4865913]
[1736098573062,2.68,213.08,213.05,2.3474]
[1736098575571,2.68,213.08,213.06,2.3473]
[1736098576774,2.68,213.08,213.04,7.4865913]
[1736098576974,2.68,213.08,213.05,2.3474]
[1736098578975,2.68,213.08,213.04,7.4865913]
[1736098579173,2.68,213.08,213.06,2.3472]
[1736098579373,2.68,213.08,213.04,7.4865913]
[1736098579768,2.68,213.08,213.07,2.3472]
[1736098592276,2.68,213.08,213.05,6.45875307]
[1736098592476,7.4865913,213.07,213.05,6.45875307]
[1736098593984,7.4865913,213.07,213.02,6.45875307]
[1736098594684,2.68,213.08,213.07,2.3472]
[1736098594885,2.68,213.09,213.06,7.4865913]
[1736098595378,2.68,213.09,213.08,2.3471]
[1736098597084,2.68,213.09,213.07,8.80595307]
[1736098597487,12.5135913,213.09,213.07,6.45875307]
[1736098597681,10.1665913,213.09,213.07,6.45875307]
[1736098597884,10.1665913,213.09,213.06,19.37625923]
[1736098598189,10.1665913,213.09,213.05,6.45875307]
[1736098598576,2.68,213.09,213.05,6.45875307]
[1736098599484,2.68,213.09,213.06,11.25047213]
[1736098599689,14.1,213.35,213.08,7.4865913]
[1736098599983,7.4865913,213.18,213.1,7.4865913]
[1736098600190,2.68,213.17,213.1,7.4865913]
[1736098600483,7.4865913,213.18,213.1,7.4865913]
[1736098600691,2.68,213.17,213.1,7.4865913]
[1736098600989,2.68,213.17,213.11,2.3467]
[1736098601290,2.68,213.17,213.11,12.27831036]
[1736098601988,2.68,213.17,213.13,2.3465]
[1736098602189,2.68,213.16,213.13,2.3465]
[1736098604690,9.8325913,213.18,213.13,2.3465]
[1736098604989,2.68,213.17,213.13,2.3465]
[1736098605189,2.68,213.17,213.12,2.3466]
[1736098605990,5.0261,213.17,213.12,2.3466]
[1736098607189,7.4865913,213.16,213.12,2.3466]
[1736098607891,9.8327913,213.16,213.11,7.4865913]
[1736098608090,9.8327913,213.16,213.11,9.8332913]
[1736098610990,9.8327913,213.16,213.11,7.4865913]
[1736098611593,9.8327913,213.16,213.1,2.3469]
[1736098616399,2.3463,213.15,213.1,2.3469]
[1736098616893,2.68,213.17,213.09,6.45875307]
[1736098616894,2.3469,213.1,213.09,6.45875307]
[1736098617095,10.1665913,213.1,213.08,25.8350123]
[1736098617898,2.3471,213.09,213.03,28.1826123]
[1736098618199,7.4865913,213.08,213.03,28.1826123]
[1736098618699,7.4865913,213.08,213.04,7.13212536]
[1736098619599,7.4865913,213.08,213.04,2.3475]
[1736098621196,2.3472,213.07,213.03,25.8350123]
[1736098622201,2.3472,213.07,213.04,4.78298743]
[1736098623301,2.3472,213.07,213.03,6.45875307]
[1736098624897,2.3472,213.07,213.03,8.80635307]
[1736098625701,9.8336913,213.08,213.03,8.80635307]
[1736098626900,9.8336913,213.08,213.04,4.78157087]
[1736098627505,9.8336913,213.08,213.03,8.80635307]
[1736098629006,9.8336913,213.08,213.04,4.78146913]
[1736098630001,9.8336913,213.08,213.03,8.80635307]
[1736098631006,9.8336913,213.08,213.03,28.1826123]
[1736098631807,9.8336913,213.08,213.04,4.78180089]
[1736098632702,9.8336913,213.08,213.03,2.3476]
[1736098633803,9.8336913,213.08,213.03,8.80635307]
[1736098634601,2.68,213.07,213.03,8.80635307]
[1736098636007,2.68,213.07,213.03,2.3476]
[1736098637815,5.0272,213.07,213.03,2.3476]
[1736098638114,0.03723247,213.03,213.01,28.7459123]
[1736098638321,7.4865913,213.04,213.01,25.8350123]
[1736098638507,2.3477,213.03,213.01,6.45875307]
[1736098639517,2.3477,213.03,212.99,32.6797682]
[1736098640315,2.3477,213.03,212.99,6.8447559]
[1736098640514,2.68,213.02,212.99,6.8447559]
[1736098648136,5.0277,213.02,212.99,6.8447559]
[1736098648434,4.9757782,213.02,212.99,6.8447559]
[1736098648638,12.4623695,213.02,212.99,6.8447559]
[1736098650240,7.4865913,213.0,212.97,2.3483]
[1736098650439,7.4865913,213.0,212.94,30.2368123]
[1736098650629,7.4865913,213.0,212.94,10.86055307]
[1736098650826,9.8345913,213.0,212.96,2.3484]
[1736098653337,7.4865913,213.0,212.96,2.3484]
[1736098655433,7.4865913,213.0,212.97,2.3483]
[1736098664043,2.68,213.02,213.0,2.3479]
[1736098665840,2.68,213.02,212.96,7.4865913]
[1736098666046,7.4865913,213.01,212.97,2.3483]
[1736098666639,7.4865913,213.01,212.94,10.3941913]
[1736098666842,7.4865913,213.01,212.95,2.3484]
[1736098667044,7.4865913,213.01,212.94,10.3941913]
[1736098667944,9.8343913,213.01,212.96,2.3483]
[1736098670249,7.4865913,213.01,212.96,2.3483]
[1736098671353,9.8344913,213.01,212.96,2.3483]
[1736098671652,9.8344913,213.01,212.97,2.3482]
[1736098674245,7.4865913,213.06,212.99,7.4865913]
[1736098674450,2.68,213.05,212.99,7.4865913]
[1736098674753,2.68,213.05,213.0,2.3479]
[1736098674951,2.68,213.05,212.99,7.4865913]
[1736098675954,2.68,213.05,213.0,11.27274811]
[1736098676153,7.4865913,213.04,213.0,11.27274811]
[1736098676948,7.4865913,213.04,212.98,25.94471449]
[1736098677554,9.8340913,213.04,212.99,2.348]
[1736098677953,9.8340913,213.04,212.99,7.13543051]
[1736098678453,9.8340913,213.04,212.99,2.348]
[1736098679460,9.8340913,213.04,213.0,2.3479]
[1736098679860,7.4865913,213.04,213.0,2.3479]
[1736098684757,9.8341913,213.04,213.0,2.3479]
[1736098684958,9.8341913,213.04,212.99,2.3481]
[1736098685761,7.4865913,213.02,212.98,8.83427862]
[1736098686751,7.4865913,213.02,212.98,2.3481]
[1736098688458,7.4865913,213.02,212.99,2.3481]
[1736098689854,7.4865913,213.0,212.97,6.48617862]
[1736098690059,2.68,212.99,212.97,6.48617862]
[1736098690561,2.68,212.99,212.96,8.83447862]
[1736098691660,2.68,212.99,212.97,2.3483]
[1736098694363,2.68,213.0,212.97,2.3483]
[1736098696859,2.68,213.0,212.96,6.48617862]
[1736098697070,9.8341913,213.04,212.96,6.48617862]
[1736098697363,9.8341913,213.04,212.96,13.97276992]
[1736098697364,2.68,213.03,212.96,13.97276992]
[1736098697666,2.68,213.03,212.99,2.348]
[1736098697860,9.8341913,213.04,212.99,2.348]
[1736098698167,2.68,213.03,212.99,2.348]
[1736098699369,2.68,213.03,212.98,6.48617862]
[1736098699560,2.68,213.03,213.0,2.3479]
[1736098701968,7.4865913,213.02,212.98,28.29281449]
[1736098702164,7.4865913,213.0,212.98,28.29281449]
[1736098702370,7.4865913,213.0,212.98,25.94471449]
[1736098702665,7.4865913,213.0,212.98,6.48617862]
[1736098703468,7.4865913,213.0,212.95,6.48617862]
[1736098703665,7.4865913,212.98,212.95,6.48617862]
[1736098703872,2.68,212.97,212.95,6.48617862]
[1736098704260,2.68,212.97,212.94,6.48617862]
[1736098704468,7.4865913,212.96,212.94,6.48617862]
[1736098704971,2.3485,212.95,212.94,6.48617862]
[1736098705465,2.3485,212.95,212.92,25.94471449]
[1736098705771,7.4865913,212.94,212.92,25.94471449]
[1736098706676,7.4865913,212.94,212.9,2.349]
[1736098708470,7.4865913,212.94,212.88,13.97276992]
[1736098708675,7.4865913,212.96,212.88,13.97276992]
[1736098709073,7.4865913,212.96,212.89,4.78514418]
[1736098709279,7.4865913,212.96,212.91,2.3489]
[1736098709577,7.4865913,212.96,212.89,4.78514418]
[1736098709871,7.4865913,212.96,212.91,2.3489]
[1736098710369,5.0283,212.97,212.91,2.3489]
[1736098710576,7.4865913,212.94,212.91,2.3489]
[1736098713077,7.4865913,212.94,212.87,25.94471449]
[1736098713277,7.4865913,212.92,212.87,25.94471449]
[1736098713481,10.1465913,212.92,212.87,25.94471449]
[1736098713980,7.4865913,212.88,212.87,25.94471449]
[1736098714183,7.4865913,212.88,212.86,25.94471449]
[1736098714377,2.66,212.87,212.86,25.94471449]
[1736098715678,5.0094,212.87,212.86,6.48617862]
[1736098715881,5.0094,212.87,212.82,2.3499]
[1736098716083,7.4865913,212.86,212.82,2.3499]
[1736098716477,7.4865913,212.86,212.79,25.94471449]
[1736098716672,7.4865913,212.86,212.8,2.3501]
[1736098716878,9.8360913,212.86,212.8,2.3501]
[1736098717784,9.8360913,212.86,212.78,8.9447913]
[1736098717986,9.8360913,212.86,212.81,2.35]
[1736098720983,2.66,212.87,212.8,7.4865913]
[1736098721890,9.8360913,212.86,212.8,7.4865913]
[1736098722391,7.4865913,212.86,212.8,7.4865913]
[1736098722585,7.4865913,212.86,212.82,2.3498]
[1736098722887,7.4865913,212.86,212.8,7.4865913]
[1736098723093,7.4865913,212.86,212.83,2.3498]
[1736098724290,7.4865913,212.86,212.82,2.3499]
[1736098724789,7.4865913,212.86,212.81,2.35]
[1736098724991,7.4865913,212.84,212.78,1.4582]
[1736098725195,7.4865913,212.82,212.77,1.4449]
[1736098725392,2.66,212.81,212.76,6.48617862]
[1736098725589,2.66,212.81,212.75,80.15397108]
[1736098726188,5.0101,212.81,212.77,2.3504]
[1736098727289,7.4865913,212.8,212.77,2.3504]
[1736098731193,7.4865913,212.78,212.68,51.88942899]
[1736098731494,2.66,212.81,212.68,70.97618356]
[1736098731495,7.4865913,212.74,212.68,70.97618356]
[1736098731685,2.68,212.73,212.68,70.97618356]
[1736098731891,7.4865913,212.72,212.68,70.97618356]
[1736098732293,7.4865913,212.7,212.68,70.97618356]
[1736098732894,7.4865913,212.7,212.64,1.4571]
[1736098733399,7.4865913,212.68,212.64,2.3518]
[1736098733600,10.1665913,212.68,212.62,33.43130579]
[1736098733790,10.1665913,212.68,212.62,25.94471449]
[1736098734500,7.4865913,212.66,212.6,10.5432913]
[1736098735495,7.4865913,212.66,212.63,2.352]
[1736098736497,7.4865913,212.66,212.6,10.5432913]
[1736098736696,7.4865913,212.66,212.64,2.3519]
[1736098738299,7.4865913,212.66,212.62,2.352]
[1736098738499,7.4865913,212.66,212.58,7.4865913]
[1736098739204,7.4865913,212.66,212.57,1.4215]
[1736098739505,7.4865913,212.66,212.58,7.4865913]
[1736098740403,4.4061,212.78,212.6,7.4865913]
[1736098740604,0.76159977,212.77,212.66,7.4865913]
[1736098740806,2.68,212.76,212.66,7.4865913]
[1736098741008,7.4865913,212.73,212.66,7.4865913]
[1736098742002,7.4865913,212.73,212.72,7.4865913]
[1736098742003,2.68,212.73,212.72,7.4865913]
[1736098742200,58.8065913,212.79,212.72,7.4865913]
[1736098742403,2.68,212.78,212.72,7.4865913]
[1736098742603,2.68,212.78,212.64,3.0052]
[1736098742604,87.74598751,212.86,212.74,7.4865913]
[1736098742802,7.4865913,212.81,212.74,7.4865913]
[1736098742999,2.68,212.8,212.74,7.4865913]
[1736098743200,2.68,212.8,212.75,2.3506]
[1736098743408,2.68,212.8,212.74,7.4865913]
[1736098743808,2.68,212.8,212.78,2.3504]
[1736098744108,2.68,212.8,212.74,7.4865913]
[1736098744710,2.68,212.8,212.79,2.3503]
[1736098745910,7.4865913,212.85,212.8,2.3501]
[1736098746213,2.66,212.84,212.78,7.4865913]
[1736098746602,7.4865913,212.85,212.78,7.4865913]
[1736098746809,2.66,212.84,212.76,7.4865913]
[1736098747610,2.66,212.84,212.8,2.3501]
[1736098747812,2.66,212.84,212.76,7.4865913]
[1736098748513,2.66,212.84,212.81,2.35]
[1736098749411,7.4865913,212.83,212.76,13.97276992]
[1736098749607,7.4865913,212.83,212.79,2.3502]
[1736098749808,7.4865913,212.83,212.76,13.97276992]
[1736098750612,7.4865913,212.83,212.76,7.4865913]
[1736098751414,7.4865913,212.83,212.8,2.3501]
[1736098752211,7.4865913,212.83,212.81,2.35]
[1736098752911,7.4865913,212.83,212.76,7.4865913]
[1736098752912,2.66,212.84,212.82,2.3499]
[1736098753109,2.66,212.84,212.78,7.4865913]
[1736098753712,2.66,212.85,212.83,2.3497]
[1736098759217,2.66,212.85,212.81,2.35]
[1736098759608,7.4865913,212.84,212.75,25.94471449]
[1736098759807,9.8362913,212.84,212.79,2.3502]
[1736098760212,7.4865913,212.84,212.75,6.48617862]
[1736098760411,7.4865913,212.84,212.8,2.3502]
[1736098761016,2.3498,212.83,212.77,2.3505]
[1736098761215,7.4865913,212.82,212.74,14.33890306]
[1736098761716,7.4865913,212.82,212.79,2.3502]
[1736098764115,7.4865913,212.82,212.76,7.4865913]
[1736098764419,5.0096,212.85,212.8,2.3501]
[1736098764723,7.4865913,212.84,212.8,2.3501]
[1736098765523,7.4865913,212.84,212.81,2.3499]
[1736098765820,7.4865913,212.84,212.76,7.4865913]
[1736098766217,7.4865913,212.84,212.81,2.35]
[1736098767726,7.4865913,212.84,212.76,7.4865913]
[1736098768022,7.4865913,212.84,212.8,2.3502]
[1736098770220,7.4865913,212.84,212.74,6.85231176]
[1736098770426,2.3498,212.83,212.74,14.33890306]
[1736098770624,7.4865913,212.82,212.74,14.33890306]
[1736098771525,7.4865913,212.82,212.78,2.3503]
[1736098772023,7.4865913,212.8,212.76,2.3506]
[1736098772223,10.1465913,212.8,212.74,6.85231176]
[1736098772725,10.1465913,212.8,212.76,2.3506]
[1736098773126,10.1465913,212.8,212.74,6.85231176]
[1736098773320,10.1465913,212.8,212.75,2.3507]
[1736098774428,12.4967913,212.8,212.75,2.3507]
[1736098775721,12.4967913,212.8,212.74,6.85231176]
[1736098775722,10.1465913,212.8,212.74,6.85231176]
[1736098775921,10.1465913,212.8,212.77,2.3505]
[1736098776419,2.66,212.8,212.78,2.3503]
[1736098776624,2.66,212.8,212.76,7.4865913]
[1736098776819,7.4865913,212.85,212.78,7.4865913]